[Event "Titled Tuesday Blitz May 16 Early 2023"]
[White "Al-Tarboush, Ward"]
[Black "Hambleton, Aman"]
[WhiteFideId "7601450"]
[BlackFideId "2606577"]
[WhiteElo "2265"]
[BlackElo "2511"]
[Result "0-1"]
[Round "04"]
[TimeControl "180+2"]
[Date "2023.05.16"]
[WhiteClock "0:01:29"]
[BlackClock "0:00:01"]

1. Nc3 {[%clk 0:03:00]}  b6 {[%clk 0:02:54]} 2. d4 {[%clk 0:03:00]}  Bb7 {[%clk 0:02:55]} 3. e4 {[%clk 0:03:01]}  e6 {[%clk 0:02:55]} 4. Bd3 {[%clk 0:02:57]}  Nf6 {[%clk 0:02:55]} 5. a3 {[%clk 0:02:48]}  d5 {[%clk 0:02:17]} 6. e5 {[%clk 0:02:48]}  Ng8 {[%clk 0:02:17]} 7. f4 {[%clk 0:02:45]}  Ne7 {[%clk 0:02:17]} 8. Nf3 {[%clk 0:02:45]}  Ba6 {[%clk 0:02:17]} 9. O-O {[%clk 0:02:41]}  Bxd3 {[%clk 0:02:16]} 10. Qxd3 {[%clk 0:02:41]}  h5 {[%clk 0:02:17]} 11. Nd1 {[%clk 0:02:34]}  c5 {[%clk 0:01:49]} 12. c3 {[%clk 0:02:35]}  c4 {[%clk 0:01:36]} 13. Qc2 {[%clk 0:02:34]}  Nbc6 {[%clk 0:01:25]} 14. Ne3 {[%clk 0:02:34]}  g6 {[%clk 0:01:26]} 15. Ng5 {[%clk 0:02:34]}  Qd7 {[%clk 0:01:24]} 16. Bd2 {[%clk 0:02:31]}  Nf5 {[%clk 0:00:52]} 17. b3 {[%clk 0:02:31]}  Nxe3 {[%clk 0:00:45]} 18. Bxe3 {[%clk 0:02:32]}  cxb3 {[%clk 0:00:46]} 19. Qxb3 {[%clk 0:02:33]}  Na5 {[%clk 0:00:46]} 20. Qc2 {[%clk 0:02:33]}  Nc4 {[%clk 0:00:44]} 21. Bf2 {[%clk 0:02:32]}  Bxa3 {[%clk 0:00:38]} 22. Qd3 {[%clk 0:02:17]}  a5 {[%clk 0:00:30]} 23. Bh4 {[%clk 0:02:11]}  Be7 {[%clk 0:00:30]} 24. Nf3 {[%clk 0:02:02]}  Bxh4 {[%clk 0:00:29]} 25. Nxh4 {[%clk 0:02:03]}  a4 {[%clk 0:00:30]} 26. h3 {[%clk 0:01:54]}  a3 {[%clk 0:00:28]} 27. Nf3 {[%clk 0:01:54]}  Kf8 {[%clk 0:00:17]} 28. Ng5 {[%clk 0:01:53]}  Kg7 {[%clk 0:00:17]} 29. g4 {[%clk 0:01:54]}  hxg4 {[%clk 0:00:17]} 30. hxg4 {[%clk 0:01:55]}  Rh4 {[%clk 0:00:18]} 31. Qg3 {[%clk 0:01:54]}  Rah8 {[%clk 0:00:18]} 32. f5 {[%clk 0:01:50]}  Kg8 {[%clk 0:00:04]} 33. fxe6 {[%clk 0:01:49]}  fxe6 {[%clk 0:00:04]} 34. Rf6 {[%clk 0:01:45]}  Rh1+ {[%clk 0:00:04]} 35. Kg2 {[%clk 0:01:46]}  Rxa1 {[%clk 0:00:01]} 36. Rxg6+ {[%clk 0:01:46]}  Kf8 {[%clk 0:00:02]} 37. Qf3+ {[%clk 0:01:46]}  Ke8 {[%clk 0:00:02]} 38. Rxe6+ {[%clk 0:01:46]}  Qxe6 {[%clk 0:00:01]} 39. Nxe6 {[%clk 0:01:46]}  a2 {[%clk 0:00:01]} 40. Ng7+ {[%clk 0:01:43]}  Kd7 {[%clk 0:00:01]} 41. Qf7+ {[%clk 0:01:43]}  Kc6 {[%clk 0:00:01]} 42. Qe6+ {[%clk 0:01:43]}  Kc7 {[%clk 0:00:02]} 43. Qf7+ {[%clk 0:01:42]}  Kb8 {[%clk 0:00:02]} 44. Qf2 {[%clk 0:01:29]}  Rah1 {[%clk 0:00:01]} 0-1


[Site "https://www.chess.com"]

[Event "Titled Tuesday Blitz May 16 Early 2023"]
[White "Hajiyev, Kanan"]
[Black "Hayrapetyan, Hovik"]
[WhiteFideId "13404148"]
[BlackFideId "13302639"]
[WhiteElo "2103"]
[BlackElo "2348"]
[Result "0-1"]
[Round "04"]
[TimeControl "180+2"]
[Date "2023.05.16"]
[WhiteClock "0:00:30"]
[BlackClock "0:00:14"]

1. d4 {[%clk 0:03:00]}  Nf6 {[%clk 0:02:55]} 2. Nf3 {[%clk 0:03:01]}  d5 {[%clk 0:02:55]} 3. c4 {[%clk 0:03:01]}  e6 {[%clk 0:02:55]} 4. cxd5 {[%clk 0:03:01]}  exd5 {[%clk 0:02:55]} 5. Nc3 {[%clk 0:03:01]}  c6 {[%clk 0:02:54]} 6. Bf4 {[%clk 0:03:01]}  Bd6 {[%clk 0:02:46]} 7. Bxd6 {[%clk 0:03:01]}  Qxd6 {[%clk 0:02:46]} 8. Qc2 {[%clk 0:03:01]}  g6 {[%clk 0:02:39]} 9. e3 {[%clk 0:03:00]}  Bf5 {[%clk 0:02:38]} 10. Bd3 {[%clk 0:02:50]}  Bxd3 {[%clk 0:02:37]} 11. Qxd3 {[%clk 0:02:51]}  Nbd7 {[%clk 0:02:38]} 12. O-O {[%clk 0:02:51]}  O-O {[%clk 0:02:36]} 13. Rab1 {[%clk 0:02:51]}  a5 {[%clk 0:02:35]} 14. Qc2 {[%clk 0:02:49]}  Rfe8 {[%clk 0:02:32]} 15. Rfc1 {[%clk 0:02:45]}  h6 {[%clk 0:01:52]} 16. a3 {[%clk 0:02:34]}  Kg7 {[%clk 0:01:05]} 17. Ne2 {[%clk 0:02:28]}  Ne4 {[%clk 0:00:54]} 18. b4 {[%clk 0:02:24]}  axb4 {[%clk 0:00:49]} 19. axb4 {[%clk 0:02:25]}  Nb6 {[%clk 0:00:40]} 20. Ne5 {[%clk 0:02:11]}  Nc4 {[%clk 0:00:39]} 21. Nxc4 {[%clk 0:02:10]}  dxc4 {[%clk 0:00:40]} 22. Qxc4 {[%clk 0:02:06]}  Nd2 {[%clk 0:00:38]} 23. Qc5 {[%clk 0:01:54]}  Qxc5 {[%clk 0:00:38]} 24. bxc5 {[%clk 0:01:55]}  Nxb1 {[%clk 0:00:38]} 25. Rxb1 {[%clk 0:01:56]}  Ra2 {[%clk 0:00:36]} 26. Nf4 {[%clk 0:01:49]}  Rea8 {[%clk 0:00:35]} 27. h4 {[%clk 0:01:38]}  Ra1 {[%clk 0:00:33]} 28. Rxa1 {[%clk 0:01:38]}  Rxa1+ {[%clk 0:00:34]} 29. Kh2 {[%clk 0:01:38]}  Ra2 {[%clk 0:00:34]} 30. Kg3 {[%clk 0:01:39]}  Rd2 {[%clk 0:00:30]} 31. Kf3 {[%clk 0:01:30]}  g5 {[%clk 0:00:28]} 32. hxg5 {[%clk 0:01:30]}  hxg5 {[%clk 0:00:28]} 33. Nh5+ {[%clk 0:01:29]}  Kg6 {[%clk 0:00:28]} 34. g4 {[%clk 0:01:30]}  f5 {[%clk 0:00:25]} 35. Ng3 {[%clk 0:01:17]}  fxg4+ {[%clk 0:00:25]} 36. Kg2 {[%clk 0:01:14]}  Rb2 {[%clk 0:00:24]} 37. Ne4 {[%clk 0:01:13]}  Kf5 {[%clk 0:00:25]} 38. Nd6+ {[%clk 0:01:13]}  Ke6 {[%clk 0:00:25]} 39. Kg3 {[%clk 0:01:13]}  b5 {[%clk 0:00:24]} 40. Ne4 {[%clk 0:01:06]}  b4 {[%clk 0:00:22]} 41. Nxg5+ {[%clk 0:01:06]}  Kd7 {[%clk 0:00:21]} 42. Ne4 {[%clk 0:00:51]}  Rc2 {[%clk 0:00:21]} 43. Nf6+ {[%clk 0:00:43]}  Ke6 {[%clk 0:00:18]} 44. Nxg4 {[%clk 0:00:44]}  b3 {[%clk 0:00:18]} 45. Ne5 {[%clk 0:00:45]}  b2 {[%clk 0:00:18]} 46. Nd3 {[%clk 0:00:44]}  b1=Q {[%clk 0:00:17]} 47. Nf4+ {[%clk 0:00:44]}  Kd7 {[%clk 0:00:16]} 48. Kf3 {[%clk 0:00:44]}  Qh1+ {[%clk 0:00:16]} 49. Kg4 {[%clk 0:00:43]}  Rxf2 {[%clk 0:00:15]} 50. Kf5 {[%clk 0:00:30]}  Qf3 {[%clk 0:00:14]} 0-1


[Site "https://www.chess.com"]

[Event "Titled Tuesday Blitz May 16 Early 2023"]
[White "Ilamparthi A R"]
[Black "Seinw1"]
[WhiteFideId "45015775"]
[WhiteElo "2348"]
[BlackElo "2569"]
[Result "1-0"]
[Round "04"]
[TimeControl "180+2"]
[Date "2023.05.16"]
[WhiteClock "0:00:22"]
[BlackClock "0:00:02"]

1. e4 {[%clk 0:03:00]}  e6 {[%clk 0:02:59]} 2. d3 {[%clk 0:02:59]}  d5 {[%clk 0:02:59]} 3. Nd2 {[%clk 0:03:00]}  Nf6 {[%clk 0:02:59]} 4. Ngf3 {[%clk 0:03:00]}  c5 {[%clk 0:02:59]} 5. g3 {[%clk 0:03:00]}  Nc6 {[%clk 0:02:58]} 6. Bg2 {[%clk 0:03:00]}  Be7 {[%clk 0:02:58]} 7. O-O {[%clk 0:02:59]}  O-O {[%clk 0:02:58]} 8. Re1 {[%clk 0:02:58]}  b5 {[%clk 0:02:58]} 9. exd5 {[%clk 0:02:58]}  exd5 {[%clk 0:02:44]} 10. d4 {[%clk 0:02:58]}  c4 {[%clk 0:02:40]} 11. a4 {[%clk 0:02:58]}  b4 {[%clk 0:02:34]} 12. Ne5 {[%clk 0:02:58]}  Nxd4 {[%clk 0:02:06]} 13. Ndxc4 {[%clk 0:02:57]}  dxc4 {[%clk 0:01:48]} 14. Bxa8 {[%clk 0:02:57]}  Bf5 {[%clk 0:01:40]} 15. Nc6 {[%clk 0:02:32]}  Nxc6 {[%clk 0:01:34]} 16. Qxd8 {[%clk 0:02:27]}  Nxd8 {[%clk 0:00:54]} 17. Rxe7 {[%clk 0:02:25]}  Ne6 {[%clk 0:00:55]} 18. Bg2 {[%clk 0:02:21]}  Nd4 {[%clk 0:00:47]} 19. Bg5 {[%clk 0:02:01]}  Nxc2 {[%clk 0:00:45]} 20. Rd1 {[%clk 0:01:54]}  c3 {[%clk 0:00:25]} 21. bxc3 {[%clk 0:01:50]}  b3 {[%clk 0:00:26]} 22. Bxf6 {[%clk 0:01:43]}  gxf6 {[%clk 0:00:25]} 23. Rb7 {[%clk 0:01:43]}  Na3 {[%clk 0:00:20]} 24. Ra1 {[%clk 0:00:47]}  Nc2 {[%clk 0:00:17]} 25. Rb1 {[%clk 0:00:42]}  Rd8 {[%clk 0:00:17]} 26. R7xb3 {[%clk 0:00:40]}  Kg7 {[%clk 0:00:14]} 27. Rc1 {[%clk 0:00:36]}  a5 {[%clk 0:00:10]} 28. Bf3 {[%clk 0:00:35]}  Rd2 {[%clk 0:00:09]} 29. h4 {[%clk 0:00:25]}  h6 {[%clk 0:00:09]} 30. Rb5 {[%clk 0:00:22]}  Bg6 {[%clk 0:00:05]} 31. Rd1 {[%clk 0:00:22]}  Rxd1+ {[%clk 0:00:03]} 32. Bxd1 {[%clk 0:00:23]}  Na3 {[%clk 0:00:04]} 33. Rxa5 {[%clk 0:00:23]}  Nc4 {[%clk 0:00:05]} 34. Rc5 {[%clk 0:00:24]}  Nd2 {[%clk 0:00:05]} 35. a5 {[%clk 0:00:23]}  Ne4 {[%clk 0:00:05]} 36. Rc6 {[%clk 0:00:23]}  Bf5 {[%clk 0:00:06]} 37. a6 {[%clk 0:00:23]}  Bd7 {[%clk 0:00:04]} 38. Rc7 {[%clk 0:00:23]}  Bc6 {[%clk 0:00:02]} 39. Rxc6 {[%clk 0:00:22]} 1-0


[Site "https://www.chess.com"]

[Event "Titled Tuesday Blitz May 16 Early 2023"]
[White "Erzhanov, Arman"]
[Black "Harsh Suresh"]
[WhiteFideId "4138821"]
[BlackFideId "45018464"]
[WhiteElo "2138"]
[BlackElo "2209"]
[Result "0-1"]
[Round "04"]
[TimeControl "180+2"]
[Date "2023.05.16"]
[WhiteClock "0:00:13"]
[BlackClock "0:00:04"]

1. e4 {[%clk 0:03:00]}  c6 {[%clk 0:02:52]} 2. d4 {[%clk 0:02:58]}  d5 {[%clk 0:02:52]} 3. exd5 {[%clk 0:02:59]}  cxd5 {[%clk 0:02:52]} 4. c4 {[%clk 0:02:58]}  Nf6 {[%clk 0:02:51]} 5. Nc3 {[%clk 0:02:58]}  g6 {[%clk 0:02:51]} 6. cxd5 {[%clk 0:02:57]}  Nxd5 {[%clk 0:02:50]} 7. Bc4 {[%clk 0:02:56]}  Nb6 {[%clk 0:02:47]} 8. Bb3 {[%clk 0:02:50]}  Bg7 {[%clk 0:02:47]} 9. Nf3 {[%clk 0:02:42]}  O-O {[%clk 0:02:47]} 10. h3 {[%clk 0:02:42]}  Nc6 {[%clk 0:02:47]} 11. Be3 {[%clk 0:02:38]}  Na5 {[%clk 0:02:47]} 12. Bc2 {[%clk 0:02:15]}  Nac4 {[%clk 0:02:46]} 13. b3 {[%clk 0:02:00]}  Nxe3 {[%clk 0:02:46]} 14. fxe3 {[%clk 0:02:00]}  Be6 {[%clk 0:02:43]} 15. O-O {[%clk 0:02:00]}  Rc8 {[%clk 0:02:43]} 16. Ne4 {[%clk 0:01:59]}  Bd5 {[%clk 0:02:36]} 17. Nc5 {[%clk 0:01:59]}  Nd7 {[%clk 0:02:36]} 18. Nd3 {[%clk 0:01:32]}  Qc7 {[%clk 0:02:27]} 19. Rc1 {[%clk 0:01:31]}  Qg3 {[%clk 0:02:27]} 20. Nf4 {[%clk 0:01:23]}  Nf6 {[%clk 0:02:15]} 21. Qe1 {[%clk 0:01:05]}  Qxe1 {[%clk 0:02:13]} 22. Rfxe1 {[%clk 0:01:06]}  Bxf3 {[%clk 0:02:00]} 23. gxf3 {[%clk 0:01:06]}  Bh6 {[%clk 0:02:00]} 24. Nd3 {[%clk 0:01:04]}  Rc3 {[%clk 0:01:49]} 25. Kf2 {[%clk 0:00:57]}  Rfc8 {[%clk 0:01:48]} 26. Bb1 {[%clk 0:00:58]}  Nd5 {[%clk 0:01:29]} 27. f4 {[%clk 0:00:57]}  e6 {[%clk 0:01:20]} 28. Rxc3 {[%clk 0:00:57]}  Rxc3 {[%clk 0:01:09]} 29. Rc1 {[%clk 0:00:56]}  Bf8 {[%clk 0:01:09]} 30. e4 {[%clk 0:00:47]}  Rxc1 {[%clk 0:01:08]} 31. Nxc1 {[%clk 0:00:48]}  Nxf4 {[%clk 0:01:09]} 32. Kg3 {[%clk 0:00:45]}  Nh5+ {[%clk 0:01:07]} 33. Kf3 {[%clk 0:00:45]}  Bg7 {[%clk 0:01:05]} 34. d5 {[%clk 0:00:44]}  exd5 {[%clk 0:01:04]} 35. exd5 {[%clk 0:00:45]}  Nf6 {[%clk 0:01:05]} 36. Be4 {[%clk 0:00:45]}  Ne8 {[%clk 0:00:59]} 37. Nd3 {[%clk 0:00:43]}  Nd6 {[%clk 0:00:59]} 38. Nc5 {[%clk 0:00:40]}  b6 {[%clk 0:00:58]} 39. Nd7 {[%clk 0:00:39]}  f5 {[%clk 0:00:53]} 40. Bd3 {[%clk 0:00:39]}  Kf7 {[%clk 0:00:54]} 41. Nb8 {[%clk 0:00:39]}  Ke8 {[%clk 0:00:43]} 42. Nc6 {[%clk 0:00:39]}  a5 {[%clk 0:00:43]} 43. a4 {[%clk 0:00:35]}  g5 {[%clk 0:00:40]} 44. b4 {[%clk 0:00:34]}  axb4 {[%clk 0:00:39]} 45. Nxb4 {[%clk 0:00:35]}  h5 {[%clk 0:00:39]} 46. Nc6 {[%clk 0:00:35]}  Kd7 {[%clk 0:00:36]} 47. a5 {[%clk 0:00:34]}  bxa5 {[%clk 0:00:35]} 48. Nxa5 {[%clk 0:00:35]}  Be5 {[%clk 0:00:35]} 49. Nc6 {[%clk 0:00:35]}  g4+ {[%clk 0:00:35]} 50. hxg4 {[%clk 0:00:36]}  fxg4+ {[%clk 0:00:33]} 51. Kg2 {[%clk 0:00:34]}  Bf4 {[%clk 0:00:32]} 52. Be2 {[%clk 0:00:34]}  Nf5 {[%clk 0:00:30]} 53. Nb4 {[%clk 0:00:30]}  Kd6 {[%clk 0:00:18]} 54. Nd3 {[%clk 0:00:30]}  Be3 {[%clk 0:00:17]} 55. Nf2 {[%clk 0:00:26]}  Bxf2 {[%clk 0:00:16]} 56. Kxf2 {[%clk 0:00:27]}  Kxd5 {[%clk 0:00:17]} 57. Bd3 {[%clk 0:00:26]}  Ke5 {[%clk 0:00:17]} 58. Be2 {[%clk 0:00:24]}  Kf4 {[%clk 0:00:17]} 59. Kg2 {[%clk 0:00:23]}  h4 {[%clk 0:00:17]} 60. Bd3 {[%clk 0:00:21]}  h3+ {[%clk 0:00:16]} 61. Kh2 {[%clk 0:00:21]}  Nh4 {[%clk 0:00:16]} 62. Bf1 {[%clk 0:00:19]}  Nf3+ {[%clk 0:00:13]} 63. Kh1 {[%clk 0:00:20]}  Ng5 {[%clk 0:00:13]} 64. Kh2 {[%clk 0:00:19]}  g3+ {[%clk 0:00:10]} 65. Kg1 {[%clk 0:00:19]}  Kf3 {[%clk 0:00:10]} 66. Bg2+ {[%clk 0:00:19]}  Kg4 {[%clk 0:00:07]} 67. Bc6 {[%clk 0:00:17]}  Kh4 {[%clk 0:00:04]} 68. Bb7 {[%clk 0:00:16]}  Ne6 {[%clk 0:00:04]} 69. Bc8 {[%clk 0:00:14]}  Nf4 {[%clk 0:00:05]} 70. Ba6 {[%clk 0:00:13]}  h2+ {[%clk 0:00:03]} 71. Kh1 {[%clk 0:00:12]}  Nh3 {[%clk 0:00:03]} 72. Kg2 {[%clk 0:00:11]}  Nf2 {[%clk 0:00:04]} 73. Kf3 {[%clk 0:00:09]}  h1=Q+ {[%clk 0:00:04]} 74. Ke3 {[%clk 0:00:09]}  Qe4+ {[%clk 0:00:04]} 75. Kd2 {[%clk 0:00:10]}  Qd4+ {[%clk 0:00:04]} 76. Ke2 {[%clk 0:00:10]}  Qd1+ {[%clk 0:00:04]} 77. Ke3 {[%clk 0:00:10]}  Ng4+ {[%clk 0:00:05]} 78. Kf4 {[%clk 0:00:10]}  g2 {[%clk 0:00:05]} 79. Be2 {[%clk 0:00:09]}  Qxe2 {[%clk 0:00:04]} 80. Kf5 {[%clk 0:00:10]}  Qe5+ {[%clk 0:00:04]} 81. Kg6 {[%clk 0:00:11]}  g1=Q {[%clk 0:00:04]} 82. Kf7 {[%clk 0:00:12]}  Qf1+ {[%clk 0:00:04]} 83. Kg8 {[%clk 0:00:12]}  Qff6 {[%clk 0:00:03]} 84. Kh7 {[%clk 0:00:13]}  Qg7# {[%clk 0:00:04]} 0-1


[Site "https://www.chess.com"]

[Event "Titled Tuesday Blitz May 16 Early 2023"]
[White "Santos Ruiz, Miguel"]
[Black "Bruedigam, Martin"]
[WhiteFideId "22291482"]
[BlackFideId "24608033"]
[WhiteElo "2499"]
[BlackElo "2331"]
[Result "1-0"]
[Round "04"]
[TimeControl "180+2"]
[Date "2023.05.16"]
[WhiteClock "0:00:24"]
[BlackClock "0:00:00"]

1. e4 {[%clk 0:03:00]}  c6 {[%clk 0:02:59]} 2. d4 {[%clk 0:03:00]}  d5 {[%clk 0:03:00]} 3. exd5 {[%clk 0:03:01]}  cxd5 {[%clk 0:03:01]} 4. c3 {[%clk 0:03:02]}  Nc6 {[%clk 0:03:00]} 5. Bf4 {[%clk 0:03:02]}  Nf6 {[%clk 0:03:00]} 6. Bd3 {[%clk 0:03:02]}  Bg4 {[%clk 0:03:00]} 7. Nf3 {[%clk 0:03:02]}  e6 {[%clk 0:03:00]} 8. Nbd2 {[%clk 0:03:02]}  Be7 {[%clk 0:02:59]} 9. h3 {[%clk 0:03:00]}  Bh5 {[%clk 0:02:59]} 10. O-O {[%clk 0:02:59]}  O-O {[%clk 0:02:58]} 11. Re1 {[%clk 0:02:59]}  Bg6 {[%clk 0:02:52]} 12. Bxg6 {[%clk 0:02:58]}  hxg6 {[%clk 0:02:53]} 13. a4 {[%clk 0:02:56]}  a6 {[%clk 0:02:51]} 14. Qe2 {[%clk 0:02:53]}  Qb6 {[%clk 0:02:30]} 15. Qd3 {[%clk 0:02:51]}  Rfc8 {[%clk 0:02:30]} 16. h4 {[%clk 0:02:45]}  Qd8 {[%clk 0:01:56]} 17. g3 {[%clk 0:02:26]}  Bd6 {[%clk 0:01:33]} 18. Bxd6 {[%clk 0:02:23]}  Qxd6 {[%clk 0:01:34]} 19. Ne5 {[%clk 0:02:20]}  Nd7 {[%clk 0:01:18]} 20. Ndf3 {[%clk 0:02:16]}  Ncxe5 {[%clk 0:01:11]} 21. Nxe5 {[%clk 0:02:04]}  Nxe5 {[%clk 0:01:10]} 22. Rxe5 {[%clk 0:02:03]}  f6 {[%clk 0:00:55]} 23. Re3 {[%clk 0:01:59]}  Kf7 {[%clk 0:00:55]} 24. Rae1 {[%clk 0:01:57]}  Re8 {[%clk 0:00:55]} 25. Qe2 {[%clk 0:01:46]}  Re7 {[%clk 0:00:53]} 26. h5 {[%clk 0:01:46]}  g5 {[%clk 0:00:53]} 27. Qd3 {[%clk 0:01:46]}  Rh8 {[%clk 0:00:50]} 28. Qe2 {[%clk 0:01:29]}  Qc6 {[%clk 0:00:37]} 29. Qg4 {[%clk 0:01:25]}  Rh6 {[%clk 0:00:28]} 30. f4 {[%clk 0:01:16]}  gxf4 {[%clk 0:00:25]} 31. gxf4 {[%clk 0:01:17]}  f5 {[%clk 0:00:17]} 32. Qg5 {[%clk 0:01:12]}  Qxa4 {[%clk 0:00:16]} 33. Rg3 {[%clk 0:01:12]}  Kf8 {[%clk 0:00:16]} 34. Re2 {[%clk 0:00:48]}  Qe8 {[%clk 0:00:16]} 35. Rh2 {[%clk 0:00:46]}  Qf7 {[%clk 0:00:16]} 36. Qh4 {[%clk 0:00:45]}  Qf6 {[%clk 0:00:15]} 37. Rg5 {[%clk 0:00:44]}  Ke8 {[%clk 0:00:14]} 38. Qe1 {[%clk 0:00:40]}  Kd8 {[%clk 0:00:08]} 39. Rhg2 {[%clk 0:00:39]}  Kc8 {[%clk 0:00:08]} 40. Qd1 {[%clk 0:00:37]}  Kb8 {[%clk 0:00:07]} 41. Qa4 {[%clk 0:00:36]}  Ka7 {[%clk 0:00:06]} 42. b4 {[%clk 0:00:36]}  Rc7 {[%clk 0:00:06]} 43. b5 {[%clk 0:00:36]}  Rc4 {[%clk 0:00:05]} 44. b6+ {[%clk 0:00:28]}  Kxb6 {[%clk 0:00:05]} 45. Qd7 {[%clk 0:00:24]}  Ka7 {[%clk 0:00:00]} 46. Rb2 {[%clk 0:00:24]} 1-0


[Site "https://www.chess.com"]

[Event "Titled Tuesday Blitz May 16 Early 2023"]
[White "Bocharov, Dmitry"]
[Black "Gontcharov, Vladislav"]
[WhiteFideId "4138716"]
[BlackFideId "4123492"]
[WhiteElo "2469"]
[BlackElo "2420"]
[Result "1-0"]
[Round "04"]
[TimeControl "180+2"]
[Date "2023.05.16"]
[WhiteClock "0:00:19"]
[BlackClock "0:00:00"]

1. d4 {[%clk 0:02:55]}  Nf6 {[%clk 0:02:59]} 2. c4 {[%clk 0:02:55]}  e6 {[%clk 0:02:57]} 3. g3 {[%clk 0:02:46]}  Bb4+ {[%clk 0:02:55]} 4. Bd2 {[%clk 0:02:45]}  Be7 {[%clk 0:02:52]} 5. Bg2 {[%clk 0:02:45]}  d5 {[%clk 0:02:53]} 6. Nf3 {[%clk 0:02:43]}  O-O {[%clk 0:02:53]} 7. O-O {[%clk 0:02:43]}  c6 {[%clk 0:02:50]} 8. Qc2 {[%clk 0:02:39]}  b6 {[%clk 0:02:42]} 9. Bf4 {[%clk 0:02:34]}  Ba6 {[%clk 0:02:40]} 10. Nbd2 {[%clk 0:02:32]}  Nbd7 {[%clk 0:02:24]} 11. Rfd1 {[%clk 0:02:28]}  c5 {[%clk 0:02:18]} 12. Ne5 {[%clk 0:02:17]}  Bb7 {[%clk 0:02:05]} 13. Ndf3 {[%clk 0:02:12]}  cxd4 {[%clk 0:02:00]} 14. Nxd7 {[%clk 0:02:03]}  Qxd7 {[%clk 0:01:36]} 15. Ne5 {[%clk 0:02:03]}  Qc8 {[%clk 0:01:34]} 16. Rxd4 {[%clk 0:02:00]}  Bc5 {[%clk 0:01:28]} 17. Rdd1 {[%clk 0:01:59]}  dxc4 {[%clk 0:01:28]} 18. Bxb7 {[%clk 0:01:55]}  Qxb7 {[%clk 0:01:28]} 19. Qxc4 {[%clk 0:01:56]}  Rac8 {[%clk 0:01:28]} 20. Qb3 {[%clk 0:01:54]}  Nd5 {[%clk 0:01:01]} 21. Bd2 {[%clk 0:01:50]}  Rfd8 {[%clk 0:00:52]} 22. Rac1 {[%clk 0:01:47]}  h6 {[%clk 0:00:51]} 23. Qf3 {[%clk 0:01:44]}  Qe7 {[%clk 0:00:36]} 24. b4 {[%clk 0:01:22]}  Bd6 {[%clk 0:00:31]} 25. Nc6 {[%clk 0:01:20]}  Rxc6 {[%clk 0:00:30]} 26. Rxc6 {[%clk 0:01:20]}  Nxb4 {[%clk 0:00:21]} 27. Bxb4 {[%clk 0:01:11]}  Bxb4 {[%clk 0:00:21]} 28. Rxd8+ {[%clk 0:01:10]}  Qxd8 {[%clk 0:00:22]} 29. Kg2 {[%clk 0:01:05]}  Bc5 {[%clk 0:00:22]} 30. a4 {[%clk 0:01:03]}  a5 {[%clk 0:00:21]} 31. h4 {[%clk 0:01:01]}  Qd7 {[%clk 0:00:21]} 32. h5 {[%clk 0:00:58]}  Kf8 {[%clk 0:00:21]} 33. Qe4 {[%clk 0:00:54]}  Kg8 {[%clk 0:00:20]} 34. g4 {[%clk 0:00:51]}  Kf8 {[%clk 0:00:19]} 35. f4 {[%clk 0:00:48]}  Kg8 {[%clk 0:00:19]} 36. f5 {[%clk 0:00:48]}  exf5 {[%clk 0:00:12]} 37. gxf5 {[%clk 0:00:48]}  Qd8 {[%clk 0:00:11]} 38. f6 {[%clk 0:00:45]}  gxf6 {[%clk 0:00:12]} 39. Qg4+ {[%clk 0:00:45]}  Kh7 {[%clk 0:00:10]} 40. Qf5+ {[%clk 0:00:43]}  Kg7 {[%clk 0:00:10]} 41. Qg4+ {[%clk 0:00:30]}  Kh7 {[%clk 0:00:10]} 42. Rc8 {[%clk 0:00:19]}  Qd5+ {[%clk 0:00:10]} 43. e4 {[%clk 0:00:18]}  Qg5 {[%clk 0:00:09]} 44. Qxg5 {[%clk 0:00:16]}  fxg5 {[%clk 0:00:09]} 45. Kh3 {[%clk 0:00:17]}  Kg7 {[%clk 0:00:09]} 46. Rc6 {[%clk 0:00:17]}  Bd4 {[%clk 0:00:05]} 47. Kg4 {[%clk 0:00:18]}  Bc5 {[%clk 0:00:05]} 48. Kf5 {[%clk 0:00:19]}  Bd4 {[%clk 0:00:06]} 49. e5 {[%clk 0:00:19]}  Bc5 {[%clk 0:00:03]} 50. Rc7 {[%clk 0:00:18]}  Kg8 {[%clk 0:00:01]} 51. Kf6 {[%clk 0:00:18]}  g4 {[%clk 0:00:02]} 52. Rxf7 {[%clk 0:00:18]}  Bf8 {[%clk 0:00:01]} 53. Kg6 {[%clk 0:00:18]}  g3 {[%clk 0:00:01]} 54. Rf3 {[%clk 0:00:18]}  Bg7 {[%clk 0:00:01]} 55. Rxg3 {[%clk 0:00:18]}  Bxe5 {[%clk 0:00:01]} 56. Rb3 {[%clk 0:00:18]}  Bd4 {[%clk 0:00:01]} 57. Kxh6 {[%clk 0:00:19]}  Bc5 {[%clk 0:00:00]} 58. Kg6 {[%clk 0:00:19]} 1-0


[Site "https://www.chess.com"]

[Event "Titled Tuesday Blitz May 16 Early 2023"]
[White "Dixit, Nikhil"]
[Black "Csonka, Balazs"]
[WhiteFideId "5059534"]
[BlackFideId "742910"]
[WhiteElo "2207"]
[BlackElo "2404"]
[Result "0-1"]
[Round "04"]
[TimeControl "180+2"]
[Date "2023.05.16"]
[WhiteClock "0:00:09"]
[BlackClock "0:00:06"]

1. e4 {[%clk 0:03:00]}  c5 {[%clk 0:02:58]} 2. Nf3 {[%clk 0:02:55]}  Nc6 {[%clk 0:02:56]} 3. d4 {[%clk 0:02:52]}  cxd4 {[%clk 0:02:57]} 4. Nxd4 {[%clk 0:02:53]}  e6 {[%clk 0:02:57]} 5. Nb5 {[%clk 0:02:50]}  Nf6 {[%clk 0:02:56]} 6. N1c3 {[%clk 0:02:47]}  Bc5 {[%clk 0:02:43]} 7. Bf4 {[%clk 0:02:39]}  O-O {[%clk 0:02:42]} 8. Be2 {[%clk 0:02:37]}  e5 {[%clk 0:01:59]} 9. Bg5 {[%clk 0:02:18]}  h6 {[%clk 0:01:44]} 10. Bh4 {[%clk 0:02:17]}  d6 {[%clk 0:01:40]} 11. Nd5 {[%clk 0:02:05]}  g5 {[%clk 0:01:37]} 12. Nxf6+ {[%clk 0:01:54]}  Qxf6 {[%clk 0:01:38]} 13. Bg3 {[%clk 0:01:55]}  Be6 {[%clk 0:01:14]} 14. Nc7 {[%clk 0:01:47]}  Rad8 {[%clk 0:01:13]} 15. Nxe6 {[%clk 0:01:47]}  fxe6 {[%clk 0:01:12]} 16. O-O {[%clk 0:01:47]}  d5 {[%clk 0:01:02]} 17. c3 {[%clk 0:01:44]}  dxe4 {[%clk 0:00:44]} 18. Qc2 {[%clk 0:01:41]}  Qf5 {[%clk 0:00:45]} 19. Qa4 {[%clk 0:01:19]}  Rd2 {[%clk 0:00:38]} 20. Bb5 {[%clk 0:01:13]}  h5 {[%clk 0:00:32]} 21. h4 {[%clk 0:01:05]}  Qg4 {[%clk 0:00:24]} 22. Qc4 {[%clk 0:00:39]}  Bb6 {[%clk 0:00:17]} 23. Bxc6 {[%clk 0:00:31]}  bxc6 {[%clk 0:00:17]} 24. Kh2 {[%clk 0:00:29]}  gxh4 {[%clk 0:00:15]} 25. Bxe5 {[%clk 0:00:29]}  Rfxf2 {[%clk 0:00:13]} 26. Rxf2 {[%clk 0:00:27]}  Rxf2 {[%clk 0:00:14]} 27. Rg1 {[%clk 0:00:27]}  h3 {[%clk 0:00:14]} 28. Bg3 {[%clk 0:00:23]}  Rf7 {[%clk 0:00:07]} 29. Re1 {[%clk 0:00:13]}  hxg2 {[%clk 0:00:07]} 30. Kxg2 {[%clk 0:00:09]}  Rf2+ {[%clk 0:00:06]} 31. Kh1 {[%clk 0:00:08]}  Qh3+ {[%clk 0:00:07]} 32. Kg1 {[%clk 0:00:09]}  Rf1# {[%clk 0:00:06]} 0-1


[Site "https://www.chess.com"]